fUSD/lending_fUSD_20240220
["ID","MTS","AMOUNT","RATE_DAILY","PERIOD"]
[314625689,1708466853924,-1455.33,0.00037,2]
[314625690,1708466853951,-165.21,0.00037171,2]
[314625691,1708466853976,-324.33576494,0.00037346,2]
[314625692,1708466854001,-833.61,0.0003735,2]
[314625693,1708466854028,-3556.05,0.00037421,2]
[314625694,1708466854052,-153.3739934,0.00037481,2]
[314625695,1708466854076,-9851.72933004,0.000375,2]
[314625696,1708466854102,-165.21,0.00037613,2]
[314625697,1708466854127,-210.0,0.00037971,2]
[314625698,1708466854151,-178.0,0.00038,2]
[314625699,1708466854176,-165.21,0.00038056,2]
[314625700,1708466854202,-140002.0,0.00038114,2]
[314625701,1708466854227,-173.65,0.00038135,2]
[314625702,1708466854253,-187.72,0.00038205,2]
[314625703,1708466854279,-200.0,0.00038219,2]
[314625704,1708466854305,-4682.25271669,0.00038239,2]
[314625705,1708466854330,-1880.7,0.00038246,2]
[314625706,1708466854354,-155.0,0.000383,2]
[314625707,1708466854379,-177.58,0.000383,2]
[314625708,1708466854405,-150.0,0.000383,2]
[314625709,1708466854430,-150.0,0.000383,2]
[314625710,1708466854455,-14315.92155915,0.00038341,2]
[314625711,1708466854480,-1253.62,0.00038356,15]
[314625712,1708466854504,-150.92,0.00038356,2]
[314625713,1708466854530,-214.0,0.00038423,18]
[314625714,1708466854555,-1479.10024554,0.00038432,8]
[314625715,1708466854583,-627.98,0.00038485,2]
[314625716,1708466854609,-165.21,0.00038498,2]
[314625717,1708466854634,-153.3739934,0.00038578,2]
[314625718,1708466854658,-3556.05,0.0003871,2]
[314625719,1708466854685,-324.33576494,0.00038841,2]
[314625720,1708466854709,-177.58,0.00038848,2]
[314625721,1708466854733,-300.0,0.00038848,2]
[314625722,1708466854760,-93972.84901635,0.000389,3]
[314625723,1708466854786,-165.21,0.00038941,2]
[314625724,1708466854812,-157.022121,0.00038978,35]
[314625725,1708466854839,-157.022121,0.00038988,33]
[314625726,1708466854866,-157.022121,0.00039088,34]
[314625727,1708466854890,-478.35757998,0.00039144,30]
[314625728,1708466854915,-4113.68,0.00039178,2]
[314625729,1708466854943,-157.022121,0.00039188,34]
[314625730,1708466854967,-422.62697844,0.00039192,2]
[314625731,1708466854992,-152.70128315,0.00039192,3]
[314625732,1708466855017,-549.77668958,0.00039192,2]
[314625733,1708466855045,-305.59,0.00039198,2]
[314625734,1708466855071,-162.08,0.0003926,2]
[314625735,1708466855097,-34483.95,0.00039279,2]
[314625736,1708466855123,-42147.05,0.0003928,2]
[314625737,1708466855150,-161845.348789,0.0003928,4]
[314625738,1708466855177,-157.022121,0.00039288,33]
[314625739,1708466855204,-323690.697579,0.0003929,4]
[314625740,1708466855232,-1901.492625,0.00039292,2]
[314625741,1708466855258,-3932.28124192,0.00039292,13]
[314625742,1708466855284,-1086.45581634,0.00039297,2]
[314625743,1708466855310,-250.0,0.00039299,2]
[314625744,1708466855335,-150.0,0.00039299,2]
[314625745,1708466855360,-758720.69911149,0.000393,2]
[314625746,1708466855387,-177.58,0.00039396,2]
[314625747,1708466855416,-80922.6743947,0.00039457,4]
[314625748,1708466855442,-154.4,0.00039475,2]
[314625749,1708466855468,-833.61,0.00039614,2]
[314625750,1708466855495,-155.0,0.0003967,2]
[314625751,1708466855521,-153.3739934,0.00039674,2]
[314625752,1708466855547,-4682.25271669,0.00039688,2]
[314625753,1708466855572,-14315.92155915,0.00039781,2]
[314625754,1708466855595,-3723.05959898,0.000398,7]
[314625755,1708466855620,-694.41,0.00039876,2]
[314625756,1708466855644,-17886.37139174,0.00039899,2]
[314625757,1708466855669,-2198.93244405,0.00039899,2]
[314625758,1708466855696,-685.39615286,0.000399,2]
[314625759,1708466855720,-176.45727145,0.000399,8]
[314625760,1708466855746,-1479.10024547,0.00039913,9]
[314625761,1708466855770,-187.72,0.00039941,2]
[314625762,1708466855795,-257.89464927,0.00039944,2]
[314625763,1708466855825,-80922.6743947,0.0003999,5]
[314625764,1708466855851,-500.0,0.00039999,31]
[314625765,1708466856021,-444.76875813,0.00039999,31]
[314625766,1708466856047,-5732.66270825,0.00039999,2]
[314625767,1708466856074,-213.47013236,0.00039999,2]
[314625768,1708466856098,-184.3146906,0.00039999,2]
[314625769,1708466856124,-3556.05,0.00039999,2]
[314625770,1708466856149,-2176.16010272,0.0004,7]
[314625771,1708466856175,-14546.84375899,0.0004,7]
[314625772,1708466856201,-108612.21431992,0.0004,7]
[314625773,1708466856228,-7365.69852336,0.0004,7]
[314625774,1708466856252,-4049.71651206,0.0004,2]
[314625775,1708466856276,-2981.71530002,0.0004,2]
[314625776,1708466856306,-259.1,0.0004,30]
[314625777,1708466856329,-150.0,0.0004,2]
[314625778,1708466856353,-637.20622166,0.00040011,12]
[314625779,1708466856380,-166.18,0.00040054,2]
[314625780,1708466856409,-3932.2812419,0.00040075,14]
[314625781,1708466856434,-422.62697841,0.00040094,2]
[314625782,1708466856460,-627.98,0.00040128,2]
[314625783,1708466856486,-356.99979208,0.00040137,30]
[314625784,1708466856511,-152.70128307,0.00040219,7]
[314625785,1708466856537,-157.022121,0.00040298,34]
[314625786,1708466856562,-157.022121,0.00040498,35]
[314625787,1708466856586,-600.0,0.000405,5]
[314625788,1708466856610,-150.0,0.00040548,2]
[314625789,1708466856637,-577.51,0.000406,4]
[314625790,1708466856663,-577.51,0.000406,4]
[314625791,1708466856691,-577.51,0.000406,4]
[314625792,1708466856726,-577.51,0.000406,4]
[314625793,1708466856752,-577.51,0.000406,4]
[314625794,1708466856778,-577.51,0.000406,4]
[314625795,1708466856804,-577.51,0.000406,4]
[314625796,1708466856830,-577.51,0.000406,4]
[314625797,1708466856857,-577.51,0.000406,4]
[314625798,1708466856883,-577.51,0.000406,4]
[314625799,1708466856909,-577.51,0.000406,4]
[314625800,1708466856941,-577.51,0.000406,4]
[314625801,1708466856969,-577.51,0.000406,4]
[314625802,1708466856997,-577.51,0.000406,4]
[314625803,1708466857025,-577.51,0.000406,4]
[314625804,1708466857053,-577.51,0.000406,4]
[314625805,1708466857082,-577.51,0.000406,4]
[314625806,1708466857109,-577.51,0.000406,4]
[314625807,1708466857136,-577.51,0.000406,4]
[314625808,1708466857162,-577.51,0.000406,4]
[314625809,1708466857190,-157.022121,0.00040698,35]
[314625810,1708466857215,-387.202635,0.000407,2]
[314625811,1708466857245,-153.3739934,0.0004077,2]
[314625812,1708466857272,-157.022121,0.00040798,36]
[314625813,1708466857302,-157.022121,0.00040798,35]
[314625814,1708466857329,-3932.2812419,0.00040857,15]
[314625815,1708466857354,-1901.49262492,0.00040871,5]
[314625816,1708466857381,-4355.0,0.00040877,4]
[314625817,1708466857407,-543.22790817,0.00040877,2]
[314625818,1708466857433,-1000.0,0.00040879,2]
[314625819,1708466857459,-36936.6214,0.0004088,2]
[314625820,1708466857486,-157.022121,0.00040898,36]
[314625821,1708466857511,-229.84,0.000409,2]
[314625822,1708466857541,-15720.8055,0.00040919,2]
[314625823,1708466857566,-100000.0,0.00040919,2]
[314625824,1708466857595,-457.34283811,0.0004094,33]
[314625825,1708466857620,-276804.59704733,0.0004098,2]
[314625826,1708466857645,-1000.0,0.00040986,2]
[314625827,1708466857670,-422.62697841,0.00040996,2]
[314625828,1708466857696,-10000.0,0.00041,6]
[314625829,1708466857720,-1666.81,0.00041,7]
[314625830,1708466857745,-162.99561781,0.0004104,2]
[314625831,1708466857769,-500.0,0.00041106,2]
[314625832,1708466857793,-4682.25271669,0.00041138,3]
[314625833,1708466857821,-11214.5690713,0.00041216,14]
[314625834,1708466857852,-27844.15480413,0.00041216,19]
[314625835,1708466857880,-7512.56846457,0.00041216,19]
[314625836,1708466857906,-14315.92155915,0.00041222,3]
[314625837,1708466857930,-162.08,0.00041223,2]
[314625838,1708466857957,-152.70128307,0.00041246,11]
[314625839,1708466857983,-1479.10024547,0.00041394,10]
[314625840,1708466858011,-151.022121,0.00041478,34]
[314625841,1708466858036,-1000.0,0.000416,2]
[314625842,1708466858063,-3932.2812419,0.0004164,15]
[314625843,1708466858088,-187.72,0.00041678,2]
[314625844,1708466858112,-293.0,0.00041768,4]
[314625845,1708466858290,-627.98,0.00041772,2]
[314625846,1708466858320,-151.022121,0.00041778,35]
[314625847,1708466858345,-833.61,0.00041878,2]
[314625848,1708466858370,-422.62697841,0.00041898,2]
[314625849,1708466858396,-170.35,0.00041942,2]
[314625850,1708466858422,-1253.62,0.00042092,15]
[314625851,1708466858449,-1666.81,0.000421,7]
[314625852,1708466858476,-151.022121,0.00042178,35]
[314625853,1708466858500,-152.70128307,0.00042273,15]
[314625854,1708466858524,-549.77668958,0.00042322,2]
[314625855,1708466858552,-2199464.48454251,0.00042422,4]
[314625856,1708466887052,166.51,0.00027397,2]
[314625857,1708466952101,-208.0,0.00029792,2]
[314625858,1708466952124,-465.96,0.00034346,2]
[314625859,1708466952144,-5752.0,0.00034519,2]
[314625860,1708466952165,-1964.250011,0.0003452,2]
[314625861,1708466952186,-150.0,0.00034793,2]
[314625862,1708466952206,-300.0,0.00034793,3]
[314625863,1708466952226,-400.0,0.00034793,3]
[314625864,1708466952249,-225.05832862,0.00034794,2]
[314625865,1708466958156,-2721.31668838,0.00034794,2]
[314625866,1708466958178,-3928.500023,0.00034931,2]
[314625867,1708466958201,-4910.625029,0.00035068,2]
[314625868,1708466958222,-6874.875041,0.00035342,2]
[314625869,1708466958240,-166.51,0.00035616,2]
[314625872,1708466973863,204.0,0.00029792,2]
[314625873,1708466981642,869.25,0.00035616,10]
[314625874,1708466994863,409.224,0.0003442,14]
[314625877,1708467004264,207.0,0.00029792,2]
[314625881,1708467031964,-159.0,0.0003826,7]
[314625882,1708467031975,-210.0,0.00038272,2]
[314625883,1708467031986,-677.96253148,0.000384,2]
[314625884,1708467032001,-393.16107027,0.000384,2]
[314625885,1708467032013,-4275.87639825,0.000384,2]
[314625886,1708467032023,-159.0,0.00038808,7]
[314625887,1708467032032,-159.0,0.00039356,7]
[314625888,1708467032042,-159.0,0.00039904,7]
[314625889,1708467032051,-748.64,0.00039935,2]
[314625890,1708467032061,-159.0,0.00040452,7]
[314625891,1708467032071,-551.05491709,0.00040899,2]
[314625892,1708467032081,-15973.27318343,0.000409,2]
[314625893,1708467032107,-591.89283355,0.000409,2]
[314625894,1708467032249,-12003.56588945,0.000409,2]
[314625895,1708467032261,-1556.12664025,0.000409,2]
[314625896,1708467032278,-682.93268563,0.000409,2]
[314625897,1708467032304,-9461.09856969,0.000409,2]
[314625898,1708467032314,-23900.0,0.0004091,2]
[314625899,1708467032323,-9654.06692405,0.00040913,3]
[314625900,1708467032334,-195.36,0.00041,2]
[314625901,1708467032346,-159.0,0.00041,7]
[314625903,1708467032357,-395.62630041,0.00041011,4]
[314625905,1708467032366,-261.47,0.00041012,2]
[314625907,1708467032375,-500.0,0.00041013,7]
[314625909,1708467032385,-1727.001711,0.00041013,30]
[314625911,1708467032395,-58103.12358199,0.00041013,4]
[314625912,1708467032417,-414.96820624,0.00041013,4]
[314625913,1708467032432,-91481.90821177,0.00041013,4]
[314625914,1708467032441,-150000.0,0.00041013,5]
[314625915,1708467032453,-1380.35744014,0.00041013,30]
[314625916,1708467032463,-200.0,0.00041044,2]
[314625917,1708467032472,-1764.85,0.0004106,2]
[314625918,1708467032482,-225.062062,0.00041096,14]
[314625919,1708467032492,-3797.94106264,0.00041216,8]
[314625920,1708467032502,-615.64,0.00041281,2]
[314625921,1708467032513,-187.3,0.000413,2]
[314625922,1708467032523,-159.0,0.00041548,7]
[314625923,1708467032534,-748.64,0.00041579,2]
[314625924,1708467032543,-9654.066924,0.00041912,4]
[314625925,1708467032553,-225.062062,0.00041918,14]
[314625926,1708467032564,-159.0,0.00042096,7]
[314625927,1708467032573,-157.0,0.000421,4]
[314625928,1708467032583,-500.0,0.00042122,7]
[314625929,1708467032594,-500.0,0.00042222,7]
[314625930,1708467032603,-1760.43204837,0.00042319,5]
[314625931,1708467032613,-208.59220041,0.00042378,18]
[314625932,1708467032623,-197222.749401,0.00042412,9]
[314625933,1708467032632,-6711.1421904,0.00042419,2]
[314625934,1708467032642,-499.99,0.00042422,2]
[314625935,1708467032651,-3932.2812419,0.00042422,16]
[314625936,1708467032661,-313.67043378,0.00042448,60]
[314625937,1708467032671,-313.67043375,0.00042448,60]
[314625938,1708467032680,-13914.20185232,0.00042449,2]
[314625939,1708467032692,-5177.71691595,0.00042449,2]
[314625940,1708467032713,-2400.0,0.00042449,2]
[314625949,1708467037710,-161.6105,0.00040912,2]
[314625951,1708467037719,-1709.54760832,0.00042449,2]
[314625953,1708467037775,-166.06,0.00041,2]
[314625954,1708467037784,-236.06299413,0.00042449,2]
[314625955,1708467037880,-231459.65999138,0.00042449,2]
[314625956,1708467037890,-151.022121,0.00042478,36]
[314625957,1708467037899,-159.0,0.00042644,7]
[314625958,1708467037908,-214.0,0.00042738,26]
[314625959,1708467037917,-225.062062,0.0004274,14]
[314625960,1708467037927,-151.022121,0.00042778,36]
[314625961,1708467037937,-422.62697841,0.000428,2]
[314625962,1708467037946,-730.63237569,0.00042897,10]
[314625963,1708467037956,-577.51,0.000429,4]
[314625964,1708467037965,-577.51,0.000429,4]
[314625965,1708467037975,-577.51,0.000429,4]
[314625966,1708467037985,-577.51,0.000429,4]
[314625967,1708467037995,-577.51,0.000429,4]
[314625968,1708467038006,-577.51,0.000429,4]
[314625969,1708467038015,-577.51,0.000429,4]
[314625970,1708467038026,-577.51,0.000429,4]
[314625971,1708467038035,-577.51,0.000429,4]
[314625972,1708467038045,-577.51,0.000429,4]
[314625973,1708467038055,-577.51,0.000429,4]
[314625974,1708467038065,-577.51,0.000429,4]
[314625975,1708467038075,-577.51,0.000429,4]
[314625976,1708467038085,-577.51,0.000429,4]
[314625977,1708467038097,-577.51,0.000429,4]
[314625978,1708467038106,-577.51,0.000429,4]
[314625979,1708467038116,-577.51,0.000429,4]
[314625980,1708467038125,-577.51,0.000429,4]
[314625981,1708467038134,-577.51,0.000429,4]
[314625982,1708467038144,-577.51,0.000429,4]
[314625983,1708467038154,-1000.0,0.000429,7]
[314625984,1708467038163,-1000.0,0.000429,7]
[314625985,1708467038172,-1000.0,0.000429,7]
[314625986,1708467038181,-1000.0,0.000429,7]
[314625987,1708467038190,-1000.0,0.000429,7]
[314625988,1708467038199,-1000.0,0.000429,7]
[314625989,1708467038209,-1000.0,0.000429,7]
[314625990,1708467038218,-1000.0,0.000429,7]
[314625992,1708467038227,-1000.0,0.000429,7]
[314625994,1708467038236,-1000.0,0.000429,7]
[314625996,1708467038245,-1000.0,0.000429,7]
[314625998,1708467038254,-1000.0,0.000429,7]
[314625999,1708467038263,-1000.0,0.000429,7]
[314626000,1708467038272,-1000.0,0.000429,7]
[314626001,1708467038281,-1000.0,0.000429,7]
[314626002,1708467038291,-1000.0,0.000429,7]
[314626003,1708467038300,-1000.0,0.000429,7]
[314626004,1708467038309,-1000.0,0.000429,7]
[314626005,1708467038318,-1000.0,0.000429,7]
[314626006,1708467038328,-1000.0,0.000429,7]
[314626007,1708467038342,-90000.0,0.000429,30]
[314626008,1708467038352,-9654.066924,0.0004291,5]
[314626009,1708467038361,-3853.46654368,0.00042997,2]
[314626010,1708467038370,-1000.0,0.00043,10]
[314626011,1708467038380,-4000.0,0.00043,2]
[314626012,1708467038390,-1447.33,0.0004305,2]
[314626013,1708467038399,-150.92,0.00043151,2]
[314626014,1708467038409,-151.022121,0.00043178,41]
[314626015,1708467038421,-162.08,0.00043186,2]
[314626016,1708467038452,-159.0,0.00043192,7]
[314626017,1708467038461,-3932.2812419,0.00043205,17]
[314626018,1708467038471,-748.64,0.00043223,2]
[314626019,1708467038480,-152.70128307,0.00043301,19]
[314626020,1708467038489,-208.5922004,0.00043338,19]
[314626021,1708467038498,-187.3,0.00043365,2]
[314626022,1708467038508,-150.0,0.00043431,2]
[314626023,1708467038518,-151.022121,0.00043478,41]
[314626024,1708467038527,-160.64,0.00043503,2]
[314626025,1708467038536,-305.59,0.00043553,2]
[314626026,1708467038545,-225.062062,0.00043562,14]
[314626027,1708467038555,-1829.91237,0.00043676,2]
[314626028,1708467038564,-159.0,0.0004374,7]
[314626029,1708467038574,-157.022121,0.00043778,40]
[314626030,1708467038584,-150.0,0.00043791,2]
[314626031,1708467038594,-2000.0,0.000438,2]
[314626032,1708467038603,-1001.0,0.000438,2]
[314626033,1708467038612,-800.0,0.00043835,2]
[314626034,1708467038621,-166.51,0.00043836,2]
[314626035,1708467038631,-1760.43204822,0.00043898,5]
[314626036,1708467038640,-9654.066924,0.00043909,6]
[314626037,1708467038650,-5000.0,0.00043931,4]
[314626038,1708467038659,-65740.916467,0.00043935,10]
[314626039,1708467038668,-431.137,0.00043945,2]
[314626040,1708467038677,-1064.975,0.00043945,2]
[314626041,1708467038687,-863.269,0.00043945,2]
[314626042,1708467038696,-277.855,0.00043945,2]
[314626043,1708467038705,-349.0,0.00043945,2]
[314626044,1708467038714,-1138.0,0.00043945,2]
[314626045,1708467038723,-2888.0,0.00043945,2]
[314626046,1708467038733,-324.585,0.00043945,2]
[314626047,1708467038742,-248.776,0.00043945,2]
[314626048,1708467038751,-150.173,0.00043945,2]
[314626049,1708467038760,-389.0,0.00043945,2]
[314626050,1708467038769,-2420.133,0.00043945,2]
[314626051,1708467038778,-454.0,0.00043945,2]
[314626052,1708467038787,-3932.2812419,0.00043987,18]
[314626053,1708467038796,-157.022121,0.00043998,40]
[314626054,1708467038806,-174.0,0.00044,90]
[314626055,1708467038815,-157.022121,0.00044098,41]
[314626056,1708467038825,-200.0,0.00044136,10]
[314626057,1708467038834,-152.0,0.00044139,3]
[314626058,1708467038845,-833.61,0.00044142,2]
[314626059,1708467038854,-157.022121,0.00044148,42]
[314626060,1708467038863,-1446.3023855,0.00044152,2]
[314626061,1708467038872,-1246.83153727,0.00044217,2]
[314626062,1708467038882,-157.022121,0.00044248,43]
[314626063,1708467038890,-150.0,0.00044253,2]
[314626064,1708467038899,-159.0,0.00044288,7]
[314626065,1708467038908,-208.5922004,0.00044298,21]
[314626066,1708467038917,-694.41,0.00044307,2]
[314626067,1708467038927,-150.0,0.00044318,2]
[314626068,1708467038936,-3087.45,0.00044319,2]
[314626069,1708467038945,-1871.03,0.00044319,2]
[314626070,1708467038954,-16968.49,0.00044319,2]
[314626071,1708467038963,-16218.53,0.00044319,2]
[314626072,1708467038972,-13350.38421556,0.00044325,2]
[314626073,1708467038981,-152.70128307,0.00044328,23]
[314626074,1708467038990,-182.14432098,0.00044345,2]
[314626075,1708467039000,-150.0,0.0004436,2]
[314626076,1708467039009,-225.062062,0.00044384,14]
[314626077,1708467039018,-65740.916467,0.00044389,10]
[314626078,1708467039028,-157.022121,0.00044398,42]
[314626079,1708467039037,-1000.0,0.000444,2]
[314626080,1708467039046,-150.0,0.00044413,2]
[314626081,1708467039056,-500.0,0.0004442,4]
[314626082,1708467039065,-153090.5809154,0.0004442,2]
[314626083,1708467039074,-1500.89355368,0.00044444,2]
[314626084,1708467039083,-179.07391073,0.00044476,2]
[314626085,1708467039092,-157.022121,0.00044498,43]
[314626086,1708467039101,-1446.3023855,0.00044499,2]
[314626087,1708467039113,-200.0,0.00044569,20]
[314626088,1708467039123,-800.0,0.00044569,20]
[314626089,1708467039132,-200.0,0.00044569,30]
[314626090,1708467039141,-500.0,0.00044569,30]
[314626091,1708467039150,-200.0,0.00044569,30]
[314626092,1708467039160,-150.0,0.00044581,2]
[314626093,1708467039169,-1246.83153727,0.00044588,2]
[314626094,1708467039179,-150.0,0.00044589,2]
[314626095,1708467039188,-157.022121,0.00044598,42]
[314626096,1708467039197,-1000.0,0.000446,30]
[314626097,1708467039206,-150.0,0.00044625,2]
[314626098,1708467039215,-150.0,0.00044627,2]
[314626099,1708467039225,-800.0,0.00044657,2]
[314626100,1708467039234,-157.022121,0.00044698,42]
[314626101,1708467039243,-2000.0,0.000447,2]
[314626102,1708467039252,-1000.0,0.000447,11]
[314626103,1708467039261,-500.0,0.00044719,2]
[314626104,1708467039270,-500.0,0.00044719,2]
[314626105,1708467039279,-500.0,0.00044719,2]
[314626106,1708467039289,-500.0,0.00044719,2]
[314626107,1708467039298,-500.0,0.00044719,2]
[314626108,1708467039307,-500.0,0.00044719,2]
[314626109,1708467039316,-500.0,0.00044719,2]
[314626110,1708467039326,-500.0,0.00044719,2]
[314626111,1708467039336,-500.0,0.00044719,2]
[314626112,1708467039346,-500.0,0.00044719,2]
[314626113,1708467039357,-500.0,0.00044719,2]
[314626114,1708467039366,-500.0,0.00044719,2]
[314626115,1708467039375,-500.0,0.00044719,2]
[314626116,1708467039389,-500.0,0.00044719,2]
[314626117,1708467039399,-500.0,0.00044719,2]
[314626118,1708467039408,-500.0,0.00044719,2]
[314626119,1708467039418,-500.0,0.00044719,2]
[314626120,1708467039428,-500.0,0.00044719,2]
[314626121,1708467039436,-500.0,0.00044719,2]
[314626122,1708467039446,-500.0,0.00044719,2]
[314626123,1708467039456,-500.0,0.00044719,2]
[314626124,1708467039465,-500.0,0.00044719,2]
[314626125,1708467039474,-500.0,0.00044719,2]
[314626126,1708467039483,-500.0,0.00044719,2]
[314626127,1708467039493,-500.0,0.00044719,2]
[314626128,1708467039502,-500.0,0.00044719,2]
[314626129,1708467039511,-500.0,0.00044719,2]
[314626130,1708467039521,-500.0,0.00044719,2]
[314626131,1708467039531,-500.0,0.00044719,2]
[314626132,1708467039541,-500.0,0.00044719,2]
[314626133,1708467039550,-500.0,0.00044719,2]
[314626134,1708467039560,-500.0,0.00044719,2]
[314626135,1708467039570,-500.0,0.00044719,2]
[314626136,1708467039580,-500.0,0.00044719,2]
[314626138,1708467039590,-500.0,0.00044719,2]
[314626139,1708467039600,-500.0,0.00044719,2]
[314626140,1708467039610,-500.0,0.00044719,2]
[314626141,1708467039619,-500.0,0.00044719,2]
[314626142,1708467039628,-500.0,0.00044719,2]
[314626143,1708467039638,-500.0,0.00044719,2]
[314626144,1708467039647,-500.0,0.00044719,2]
[314626145,1708467039656,-500.0,0.00044719,2]
[314626146,1708467039666,-500.0,0.00044719,2]
[314626147,1708467039675,-500.0,0.00044719,2]
[314626148,1708467039685,-500.0,0.00044719,2]
[314626149,1708467039694,-500.0,0.00044719,2]
[314626150,1708467039703,-500.0,0.00044719,2]
[314626151,1708467039713,-500.0,0.00044719,2]
[314626152,1708467039722,-500.0,0.00044719,2]
[314626153,1708467039732,-500.0,0.00044719,2]
[314626154,1708467039741,-500.0,0.00044719,2]
[314626155,1708467039751,-500.0,0.00044719,2]
[314626156,1708467039760,-500.0,0.00044719,2]
[314626157,1708467039769,-500.0,0.00044719,2]
[314626158,1708467039779,-500.0,0.00044719,2]
[314626159,1708467039788,-500.0,0.00044719,2]
[314626160,1708467040000,-500.0,0.00044719,2]
[314626161,1708467040010,-500.0,0.00044719,2]
[314626162,1708467040020,-500.0,0.00044719,2]
[314626163,1708467040030,-500.0,0.00044719,2]
[314626164,1708467040039,-500.0,0.00044719,2]
[314626165,1708467040049,-500.0,0.00044719,2]
[314626166,1708467040058,-500.0,0.00044719,2]
[314626167,1708467040068,-500.0,0.00044719,2]
[314626168,1708467040077,-500.0,0.00044719,2]
[314626169,1708467040087,-500.0,0.00044719,2]
[314626170,1708467040096,-500.0,0.00044719,2]
[314626171,1708467040105,-500.0,0.00044719,2]
[314626172,1708467040115,-500.0,0.00044719,2]
[314626173,1708467040124,-500.0,0.00044719,2]
[314626174,1708467040134,-500.0,0.00044719,2]
[314626175,1708467040143,-500.0,0.00044719,2]
[314626176,1708467040153,-500.0,0.00044719,2]
[314626177,1708467040162,-500.0,0.00044719,2]
[314626178,1708467040172,-500.0,0.00044719,2]
[314626179,1708467040181,-500.0,0.00044719,2]
[314626180,1708467040191,-500.0,0.00044719,2]
[314626181,1708467040206,-500.0,0.00044719,2]
[314626182,1708467040215,-500.0,0.00044719,2]
[314626183,1708467040225,-500.0,0.00044719,2]
[314626184,1708467040234,-500.0,0.00044719,2]
[314626185,1708467040243,-500.0,0.00044719,2]
[314626186,1708467040253,-500.0,0.00044719,2]
[314626187,1708467040262,-500.0,0.00044719,2]
[314626188,1708467040271,-500.0,0.00044719,2]
[314626189,1708467040281,-500.0,0.00044719,2]
[314626190,1708467040290,-500.0,0.00044719,2]
[314626191,1708467040299,-500.0,0.00044719,2]
[314626192,1708467040308,-400.0,0.0004472,2]
[314626193,1708467040317,-500.0,0.0004472,2]
[314626194,1708467040327,-500.0,0.0004472,2]
[314626195,1708467040340,-500.0,0.0004472,2]
[314626196,1708467040351,-500.0,0.0004472,2]
[314626197,1708467040359,-500.0,0.0004472,2]
[314626198,1708467040368,-500.0,0.0004472,2]
[314626199,1708467040378,-500.0,0.0004472,2]
[314626200,1708467040387,-500.0,0.0004472,2]
[314626201,1708467040397,-500.0,0.0004472,2]
[314626202,1708467040406,-500.0,0.0004472,2]
[314626203,1708467040415,-500.0,0.0004472,2]
[314626204,1708467040425,-500.0,0.0004472,2]
[314626205,1708467040434,-500.0,0.0004472,2]
[314626206,1708467040444,-500.0,0.0004472,2]
[314626207,1708467040454,-500.0,0.0004472,2]
[314626208,1708467040463,-500.0,0.0004472,2]
[314626209,1708467040473,-500.0,0.0004472,2]
[314626210,1708467040482,-500.0,0.0004472,2]
[314626211,1708467040491,-500.0,0.0004472,2]
[314626212,1708467040500,-500.0,0.0004472,2]
[314626213,1708467040510,-500.0,0.0004472,2]
[314626214,1708467040519,-500.0,0.0004472,2]
[314626215,1708467040528,-500.0,0.0004472,2]